{"text_format":"3","workbook":"xlsx","n_sheets":26,"sheets":["Початок","1","2","3","4","5","6","7","8","9","10","11","12","13","14","15","16","17","18","19","20","21","22","23","24","Докладні відомості"],"not_rendered":{"images":24,"defined_names":5,"pivot_tables":19},"read":"whole","date_system":"1900"}

{"sheet":"Початок","index":0,"n_rows":5,"n_cols":1,"rows_kept":5}
["Вітаємо!\nУказівки для невізуальних екранів: Використовуйте зведені таблиці максимально ефективно. Проста зведена таблиця надає загальне зведення даних. Проте іноді потрібно знайти докладні відповіді на конкретні запитання. У такому випадку можуть допомогти додаткові поля рядків і стовпців. \nВ указівках надається інформація про те, до яких клітинок потрібно перейти, щоб скористатися функцією або отримати додаткові відомості.\nЩоб почати, натисніть клавіші Ctrl + Page Down."]
["Максимально ефективна \nробота зі зведеними таблицями"]
["Проста зведена таблиця надає загальне зведення даних.\nПроте іноді потрібно знайти докладні відповіді на конкретні запитання.\nУ такому випадку можуть допомогти додаткові поля рядків і стовпців."]
["КОРИСНА ІНФОРМАЦІЯ\nЧи працювали ви з першим навчальним посібником? Якщо ні, виберіть \"Файл > Створити\" та знайдіть посібник \"Створення першої зведеної таблиці\"."]
["Поверніться на початок, натиснувши клавіші Ctrl+Home. Щоб почати демонстрацію, натисніть клавіші Ctrl + Page Down."]

{"sheet":"1","index":1,"n_rows":16,"n_cols":9,"rows_kept":16}
["У першому навчальному посібнику розглядається поняття зведеної таблиці. Крім того, у ньому пояснюється, як поле рядка можна використовувати як умову, що розбиває поле значення.   "]
["У клітинках H10:I14 наведено зведену таблицю з підсумками даних, введених у клітинки B8:E16. Зведена таблиця має два стовпці: \"Покупець\" і \"Сума з Сума\". У стовпці \"Покупець\" наведено такі значення: \"Тато\", \"Мама\", \"Ольга\" та \"Загальний підсумок\". У стовпці \"Сума з Сума\" наведено такі значення: 220 ₴, 270 ₴, 810 ₴ і 1300 ₴. Стовпець \"Покупець\" складається з поля рядка, а стовпець \"Сума з Сума\" – з поля значення."]
["Щоб продовжити роботу з цим посібником, натисніть клавіші Ctrl + Page Down. Щоб перейти до попереднього аркуша, натисніть клавіші Ctrl + Page Up."]
[]
[]
[]
[]
[null,"Дата","Покупець","Тип","Сума"]
["У цьому прикладі показано, як поле рядка...","2017-01-01","Тато","Подарунки",{"v":95,"d":"95₴"}]
["...розбиває поле значення.","2017-01-15","Мама","Їжа",{"v":325,"d":"325₴"},null,null,"Покупець","Сума з Сума"]
[null,"2017-01-17","Мама","Квитки",{"v":250,"d":"250₴"},null,null,"Тато",{"v":220,"d":"220₴"}]
[null,"2017-01-21","Тато","Їжа",{"v":125,"d":"125₴"},null,null,"Ольга",{"v":270,"d":"270₴"}]
[null,"2017-02-02","Мама","Їжа",{"v":235,"d":"235₴"},null,null,"Мама",{"v":810,"d":"810₴"}]
[null,"2017-02-20","Ольга","Музика",{"v":20,"d":"20₴"},null,null,"Grand Total",{"v":1300,"d":"1,300₴"}]
[null,"2017-02-25","Ольга","Квитки",{"v":125,"d":"125₴"}]
[null,"2017-02-25","Ольга","Спорт",{"v":125,"d":"125₴"}]

{"sheet":"2","index":2,"n_rows":108,"n_cols":7,"rows_kept":108}
["Коли ви вперше поглянете на зведену таблицю, у вас можуть виникнути додаткові запитання."]
["Коли ви вперше поглянете на зведену таблицю, у вас можуть виникнути додаткові запитання, наприклад, коли придбано цей товар, на що кожен член сім’ї витрачав гроші або що дійсно дороге купила мама."]
["У цьому прикладі в клітинках F11:G15 наведено ті самі два стовпці зведеної таблиці, що й на попередньому аркуші. Стовпець \"Покупець\" – це поле рядка, у якому наведено такі значення: \"Тато\", \"Мама\", \"Ольга\" та \"Загальний підсумок\". Стовпець \"Сума з Сума\" – це поле значень. У ньому наведено такі значення: 2200 ₴, 2700 ₴, 8100 ₴ і 13 000 ₴. "]
["Щоб продовжити роботу з цим посібником, натисніть клавіші Ctrl + Page Down. Щоб перейти до попереднього аркуша, натисніть клавіші Ctrl + Page Up."]
[]
[]
[]
[]
[]
[]
[{"$nulls":5},"Покупець","Сума з Сума"]
[{"$nulls":5},"Тато",{"v":220,"d":"220₴"}]
[{"$nulls":5},"Ольга",{"v":270,"d":"270₴"}]
[{"$nulls":5},"Мама",{"v":810,"d":"810₴"}]
[{"$nulls":5},"Grand Total",{"v":1300,"d":"1,300₴"}]
{"$rows_empty":84}
[null,"Дата","Покупець","Тип","Сума"]
[null,"2017-01-01","Тато","Подарунки",{"v":95,"d":"95₴"}]
[null,"2017-01-15","Мама","Їжа",{"v":325,"d":"325₴"}]
[null,"2017-01-17","Мама","Квитки",{"v":250,"d":"250₴"}]
[null,"2017-01-21","Тато","Їжа",{"v":125,"d":"125₴"}]
[null,"2017-02-02","Мама","Їжа",{"v":235,"d":"235₴"}]
[null,"2017-02-20","Ольга","Музика",{"v":20,"d":"20₴"}]
[null,"2017-02-25","Ольга","Квитки",{"v":125,"d":"125₴"}]
[null,"2017-02-25","Ольга","Спорт",{"v":125,"d":"125₴"}]

{"sheet":"3","index":3,"n_rows":108,"n_cols":7,"rows_kept":108}
["Усі ці питання варті уваги, але давайте зосередимося на одному:"]
["на що кожен член сім’ї витрачав гроші?"]
["У цьому прикладі в клітинках F11:G15 наведено ті самі два стовпці зведеної таблиці, що й на попередньому аркуші. Стовпець \"Покупець\" – це поле рядка, у якому наведено такі значення: \"Тато\", \"Мама\", \"Ольга\" та \"Загальний підсумок\". Стовпець \"Сума з Сума\" – це поле значень. У ньому наведено такі значення: 2200 ₴, 2700 ₴, 8100 ₴ і 13 000 ₴. "]
["Щоб продовжити роботу з цим посібником, натисніть клавіші Ctrl + Page Down. Щоб перейти до попереднього аркуша, натисніть клавіші Ctrl + Page Up."]
[]
[]
[]
[]
[]
[]
[{"$nulls":5},"Покупець","Сума з Сума"]
[{"$nulls":5},"Тато",{"v":220,"d":"220₴"}]
[{"$nulls":5},"Ольга",{"v":270,"d":"270₴"}]
[{"$nulls":5},"Мама",{"v":810,"d":"810₴"}]
[{"$nulls":5},"Grand Total",{"v":1300,"d":"1,300₴"}]
{"$rows_empty":84}
[null,"Дата","Покупець","Тип","Сума"]
[null,"2017-01-01","Тато","Подарунки",{"v":95,"d":"95₴"}]
[null,"2017-01-15","Мама","Їжа",{"v":325,"d":"325₴"}]
[null,"2017-01-17","Мама","Квитки",{"v":250,"d":"250₴"}]
[null,"2017-01-21","Тато","Їжа",{"v":125,"d":"125₴"}]
[null,"2017-02-02","Мама","Їжа",{"v":235,"d":"235₴"}]
[null,"2017-02-20","Ольга","Музика",{"v":20,"d":"20₴"}]
[null,"2017-02-25","Ольга","Квитки",{"v":125,"d":"125₴"}]
[null,"2017-02-25","Ольга","Спорт",{"v":125,"d":"125₴"}]

{"sheet":"4","index":4,"n_rows":108,"n_cols":9,"rows_kept":108}
["Останнє запитання, на яке слід знайти відповідь, – це на що кожен член сім’ї витрачав гроші?"]
["Щоб відповісти на нього, ми додали поле стовпця \"Тип\". У результаті зведена таблиця тепер містить п’ять нових стовпців із типами придбань, виконаних кожним членом сім’ї. "]
["Нову зведену таблицю наведено в клітинках C10:I15. Вона містить такі стовпці: \"Покупець\", \"Їжа\", \"Музика\", \"Спорт\", \"Квитки\", \"Подарунки\" та \"Загальний підсумок\". Стовпці \"Покупець\" і \"Загальний підсумок\" такі самі, як і на попередніх аркушах. Між ними додано нові стовпці відомостей."]
["Щоб продовжити роботу з цим посібником, натисніть клавіші Ctrl + Page Down. Щоб перейти до попереднього аркуша, натисніть клавіші Ctrl + Page Up."]
[]
[]
[]
[]
[]
[null,null,"Сума з Сума","Тип"]
[null,null,"Покупець","Їжа","Музика","Спорт","Квитки","Подарунки","Grand Total"]
[null,null,"Тато",{"v":125,"d":"125₴"},{"$nulls":3},{"v":95,"d":"95₴"},{"v":220,"d":"220₴"}]
[null,null,"Ольга",null,{"v":20,"d":"20₴"},{"v":125,"d":"125₴"},{"v":125,"d":"125₴"},null,{"v":270,"d":"270₴"}]
[null,null,"Мама",{"v":560,"d":"560₴"},null,null,{"v":250,"d":"250₴"},null,{"v":810,"d":"810₴"}]
[null,null,"Grand Total",{"v":685,"d":"685₴"},{"v":20,"d":"20₴"},{"v":125,"d":"125₴"},{"v":375,"d":"375₴"},{"v":95,"d":"95₴"},{"v":1300,"d":"1,300₴"}]
{"$rows_empty":84}
[null,"Дата","Покупець","Тип","Сума"]
[null,"2017-01-01","Тато","Подарунки",{"v":95,"d":"95₴"}]
[null,"2017-01-15","Мама","Їжа",{"v":325,"d":"325₴"}]
[null,"2017-01-17","Мама","Квитки",{"v":250,"d":"250₴"}]
[null,"2017-01-21","Тато","Їжа",{"v":125,"d":"125₴"}]
[null,"2017-02-02","Мама","Їжа",{"v":235,"d":"235₴"}]
[null,"2017-02-20","Ольга","Музика",{"v":20,"d":"20₴"}]
[null,"2017-02-25","Ольга","Квитки",{"v":125,"d":"125₴"}]
[null,"2017-02-25","Ольга","Спорт",{"v":125,"d":"125₴"}]

{"sheet":"5","index":5,"n_rows":108,"n_cols":9,"rows_kept":108}
["Якщо зведену таблицю важко зрозуміти, скористайтеся цією порадою. Спробуйте почати читати зліва, потім – згори, а потім – знизу. У прикладі нижче поле \"Тато\" наведено в клітинці C12, витрати на харчування (1250 ₴) – у клітинці D12, витрати на подарунки (950 ₴) – у клітинці E12, а загальний підсумок (2200 ₴) – у клітинці I12. У рядках 13 і 14 наведено дані про Ольгу та маму, а загальний підсумок відображається в рядку 15."]
["Щоб продовжити роботу з цим посібником, натисніть клавіші Ctrl + Page Down. Щоб перейти до попереднього аркуша, натисніть клавіші Ctrl + Page Up."]
{"$rows_empty":7}
[null,null,"Сума з Сума","Тип"]
[null,null,"Покупець","Їжа","Подарунки","Музика","Спорт","Квитки","Grand Total"]
[null,null,"Тато",{"v":125,"d":"125₴"},{"v":95,"d":"95₴"},{"$nulls":3},{"v":220,"d":"220₴"}]
[null,null,"Ольга",null,null,{"v":20,"d":"20₴"},{"v":125,"d":"125₴"},{"v":125,"d":"125₴"},{"v":270,"d":"270₴"}]
[null,null,"Мама",{"v":560,"d":"560₴"},{"$nulls":3},{"v":250,"d":"250₴"},{"v":810,"d":"810₴"}]
[null,null,"Grand Total",{"v":685,"d":"685₴"},{"v":95,"d":"95₴"},{"v":20,"d":"20₴"},{"v":125,"d":"125₴"},{"v":375,"d":"375₴"},{"v":1300,"d":"1,300₴"}]
{"$rows_empty":84}
[null,"Дата","Покупець","Тип","Сума"]
[null,"2017-01-01","Тато","Подарунки",{"v":95,"d":"95₴"}]
[null,"2017-01-15","Мама","Їжа",{"v":325,"d":"325₴"}]
[null,"2017-01-17","Мама","Квитки",{"v":250,"d":"250₴"}]
[null,"2017-01-21","Тато","Їжа",{"v":125,"d":"125₴"}]
[null,"2017-02-02","Мама","Їжа",{"v":235,"d":"235₴"}]
[null,"2017-02-20","Ольга","Музика",{"v":20,"d":"20₴"}]
[null,"2017-02-25","Ольга","Квитки",{"v":125,"d":"125₴"}]
[null,"2017-02-25","Ольга","Спорт",{"v":125,"d":"125₴"}]

{"sheet":"6","index":6,"n_rows":3,"n_cols":1,"rows_kept":3}
["Ці дії не потрібно виконувати зараз, але через кілька кроків вони вам знадобляться для роботи зі зведеною таблицею. Спочатку потрібно додати дані до поля стовпці. Щоб зробити це, перемістіть поле \"Тип\" в область поля стовпці."]
["Зображення списку поля зведеної таблиці, у якому показано перетягування поля \"Тип\" в область стовпці за допомогою курсору у вигляді стрілки."]
["Щоб продовжити роботу з цим посібником, натисніть клавіші Ctrl + Page Down. Щоб перейти до попереднього аркуша, натисніть клавіші Ctrl + Page Up."]

{"sheet":"7","index":7,"n_rows":108,"n_cols":8,"rows_kept":108}
["1. У цьому прикладі область зведеної таблиці розташовано в клітинках B13:C17. Перейдіть до будь-якої з цих клітинок."]
["2. Натисніть клавіші Alt + ОЛ, І, щоб відкрити список поля зведеної таблиці. За замовчуванням фокус опиниться на текстовому полі пошук: поле введення пошук запиту"]
["3. Перейдіть до поля \"Тип\" за допомогою клавіш зі стрілками. Вибравши, натисніть клавішу ПРОБІЛ, щоб додати поле \"Тип\" до області рядки. "]
["4. Перейдіть до поля \"Тип\" за допомогою клавіші Tab. Натисніть Enter, а потім клавіші зі стрілками, щоб вибрати команду \"Перемістити до підписів стовпців\". Натисніть Enter, щоб додати поле \"Тип\" до області стовпці. Натисніть клавіші Alt+ОЛ+І, щоб вийти з області поля зведеної таблиці."]
["Щоб продовжити роботу з цим посібником, натисніть клавіші Ctrl + Page Down. Щоб перейти до попереднього аркуша, натисніть клавіші Ctrl + Page Up."]
[]
[]
[]
[{"$nulls":7},{"$f":"IF(AND($B$14=\"Покупець\",$H$17=810),\"Чудова робота! Ви додали перше \",\" \")","v":" "}]
[{"$nulls":7},{"$f":"IF(AND($B$14=\"Покупець\",$H$17=810),\"поле – поле стовпця. Натисніть \",\" \")","v":" "}]
[{"$nulls":7},{"$f":"IF(AND($B$14=\"Покупець\",$H$17=810),\"кнопку 'Наступний', щоб продовжити...\",\" \")","v":" "}]
[]
[null,"Покупець","Сума з Сума"]
[null,"Тато",{"v":220,"d":"220₴"}]
[null,"Ольга",{"v":270,"d":"270₴"}]
[null,"Мама",{"v":810,"d":"810₴"}]
[null,"Загальний підсумок",{"v":1300,"d":"1,300₴"}]
{"$rows_empty":82}
[null,"Дата","Покупець","Тип","Сума"]
[null,"2017-01-01","Тато","Подарунки",{"v":95,"d":"95₴"}]
[null,"2017-01-15","Мама","Їжа",{"v":325,"d":"325₴"}]
[null,"2017-01-17","Мама","Квитки",{"v":250,"d":"250₴"}]
[null,"2017-01-21","Тато","Їжа",{"v":125,"d":"125₴"}]
[null,"2017-02-02","Мама","Їжа",{"v":235,"d":"235₴"}]
[null,"2017-02-20","Ольга","Музика",{"v":20,"d":"20₴"}]
[null,"2017-02-25","Ольга","Квитки",{"v":125,"d":"125₴"}]
[null,"2017-02-25","Ольга","Спорт",{"v":125,"d":"125₴"}]

{"sheet":"8","index":8,"n_rows":108,"n_cols":9,"rows_kept":108}
["Розглянемо щойно створену зведену таблицю. Цього разу ми додали спеціальні кольори, щоб розмежувати поля рядків, стовпців і значень."]
["Поле рядка розташовано в клітинках C10:C13. Його затемнено жовтим кольором."]
["Поле стовпця розташовано в клітинках D9:H10. Його затемнено помаранчевим кольором."]
["Поле значення розташовано в клітинках D11:H13. Його затемнено блакитним кольором."]
["Щоб продовжити роботу з цим посібником, натисніть клавіші Ctrl + Page Down. Щоб перейти до попереднього аркуша, натисніть клавіші Ctrl + Page Up."]
[]
[]
[]
[null,null,"Сума з Сума","Тип"]
[null,null,"Покупець","Їжа","Подарунки","Музика","Спорт","Квитки","Grand Total"]
[null,null,"Тато",{"v":125,"d":"125₴"},{"v":95,"d":"95₴"},{"$nulls":3},{"v":220,"d":"220₴"}]
[null,null,"Ольга",null,null,{"v":20,"d":"20₴"},{"v":125,"d":"125₴"},{"v":125,"d":"125₴"},{"v":270,"d":"270₴"}]
[null,null,"Мама",{"v":560,"d":"560₴"},{"$nulls":3},{"v":250,"d":"250₴"},{"v":810,"d":"810₴"}]
[null,null,"Grand Total",{"v":685,"d":"685₴"},{"v":95,"d":"95₴"},{"v":20,"d":"20₴"},{"v":125,"d":"125₴"},{"v":375,"d":"375₴"},{"v":1300,"d":"1,300₴"}]
{"$rows_empty":85}
[null,"Дата","Покупець","Тип","Сума"]
[null,"2017-01-01","Тато","Подарунки",{"v":95,"d":"95₴"}]
[null,"2017-01-15","Мама","Їжа",{"v":325,"d":"325₴"}]
[null,"2017-01-17","Мама","Квитки",{"v":250,"d":"250₴"}]
[null,"2017-01-21","Тато","Їжа",{"v":125,"d":"125₴"}]
[null,"2017-02-02","Мама","Їжа",{"v":235,"d":"235₴"}]
[null,"2017-02-20","Ольга","Музика",{"v":20,"d":"20₴"}]
[null,"2017-02-25","Ольга","Квитки",{"v":125,"d":"125₴"}]
[null,"2017-02-25","Ольга","Спорт",{"v":125,"d":"125₴"}]

{"sheet":"9","index":9,"n_rows":3,"n_cols":1,"rows_kept":3}
["Розглянемо цей приклад з іншого боку. Поле рядка розташовано ліворуч, а поле стовпця – угорі. Кожен із цих стовпців містить умову, на основі якої в полі значення формується загальний підсумок."]
["На концептуальному зображенні показано чотирьохсекторний прямокутник із полем рядка в нижньому лівому куті (жовтий), полем стовпця в правому верхньому куті (помаранчевий) і полем значення в нижньому правому куті (блакитний)."]
["Щоб продовжити роботу з цим посібником, натисніть клавіші Ctrl + Page Down. Щоб перейти до попереднього аркуша, натисніть клавіші Ctrl + Page Up."]

{"sheet":"10","index":10,"n_rows":3,"n_cols":1,"rows_kept":3}
["Згадуйте наведений на попередньому аркуші приклад, коли використовуватимете список полів. Поле рядка розташовано ліворуч, а поле стовпця – угорі. Кожен із цих стовпців містить умову, на основі якої в полі значення формується загальний підсумок."]
["На концептуальному зображенні показано список поля зведеної таблиці з полем рядка в нижньому лівому куті (жовтий), полем стовпця в правому верхньому куті (помаранчевий) і полем значення в нижньому правому куті (блакитний)."]
["Щоб продовжити роботу з цим посібником, натисніть клавіші Ctrl + Page Down. Щоб перейти до попереднього аркуша, натисніть клавіші Ctrl + Page Up."]

{"sheet":"11","index":11,"n_rows":121,"n_cols":24,"rows_kept":121}
["Зверніть увагу на такий момент. Якщо поле стовпця додає забагато стовпців, зведена таблиця стає дуже широкою. "]
["Як показано на цьому прикладі, тепер зведену таблицю розташовано в клітинках C10:X15. Це пов’язано з тим, що поле стовпця додало 20 нових стовпців. Це насправді багато! Користувачі муситимуть багато прокручувати..."]
["Щоб продовжити роботу з цим посібником, натисніть клавіші Ctrl + Page Down. Щоб перейти до попереднього аркуша, натисніть клавіші Ctrl + Page Up."]
[]
[]
[]
[]
[]
[]
[null,null,"Сума з Сума","Тип"]
[null,null,"Покупець","Авіаквитки","Автострахування","Електроенергія","Електроніка","Їжа","Квитки","Книги","Медицина","Музика","Одяг","Пальне","Паркування","Податки","Ресторан","Спорт","Стоматологічні послуги","Страхування житла","Страхування життя","Уроки музики","Членські внески","Grand Total"]
[null,null,"Тато",{"v":500,"d":"500₴"},{"$nulls":11},{"v":500,"d":"500₴"},null,{"v":1000,"d":"1,000₴"},{"$nulls":5},{"v":2000,"d":"2,000₴"}]
[null,null,"Ольга",{"$nulls":3},{"v":125,"d":"125₴"},null,{"v":125,"d":"125₴"},{"v":250,"d":"250₴"},null,{"v":20,"d":"20₴"},{"v":125,"d":"125₴"},null,{"v":20,"d":"20₴"},null,{"v":20,"d":"20₴"},{"$nulls":4},{"v":250,"d":"250₴"},null,{"v":935,"d":"935₴"}]
[null,null,"Мама",null,{"v":74,"d":"74₴"},{"v":70,"d":"70₴"},null,{"v":470,"d":"470₴"},null,null,{"v":74,"d":"74₴"},null,null,{"v":74,"d":"74₴"},{"$nulls":4},{"v":235,"d":"235₴"},{"v":235,"d":"235₴"},{"v":70,"d":"70₴"},null,{"v":125,"d":"125₴"},{"v":1427,"d":"1,427₴"}]
[null,null,"Grand Total",{"v":500,"d":"500₴"},{"v":74,"d":"74₴"},{"v":70,"d":"70₴"},{"v":125,"d":"125₴"},{"v":470,"d":"470₴"},{"v":125,"d":"125₴"},{"v":250,"d":"250₴"},{"v":74,"d":"74₴"},{"v":20,"d":"20₴"},{"v":125,"d":"125₴"},{"v":74,"d":"74₴"},{"v":20,"d":"20₴"},{"v":500,"d":"500₴"},{"v":20,"d":"20₴"},{"v":1000,"d":"1,000₴"},{"v":235,"d":"235₴"},{"v":235,"d":"235₴"},{"v":70,"d":"70₴"},{"v":250,"d":"250₴"},{"v":125,"d":"125₴"},{"v":4362,"d":"4,362₴"}]
{"$rows_empty":84}
[null,"Дата","Покупець","Тип","Сума"]
[null,"2017-01-17","Тато","Спорт",{"v":1000,"d":"1,000₴"}]
[null,"2017-01-17","Тато","Авіаквитки",{"v":500,"d":"500₴"}]
[null,"2017-01-17","Тато","Податки",{"v":500,"d":"500₴"}]
[null,"2017-02-20","Ольга","Музика",{"v":20,"d":"20₴"}]
[null,"2017-02-25","Ольга","Квитки",{"v":125,"d":"125₴"}]
[null,"2017-01-21","Ольга","Книги",{"v":250,"d":"250₴"}]
[null,"2017-02-20","Ольга","Ресторан",{"v":20,"d":"20₴"}]
[null,"2017-02-25","Ольга","Одяг",{"v":125,"d":"125₴"}]
[null,"2017-01-21","Ольга","Уроки музики",{"v":250,"d":"250₴"}]
[null,"2017-02-20","Ольга","Паркування",{"v":20,"d":"20₴"}]
[null,"2017-02-25","Ольга","Електроніка",{"v":125,"d":"125₴"}]
[null,"2017-01-01","Мама","Пальне",{"v":74,"d":"74₴"}]
[null,"2017-01-15","Мама","Їжа",{"v":235,"d":"235₴"}]
[null,"2017-01-21","Мама","Членські внески",{"v":125,"d":"125₴"}]
[null,"2017-02-02","Мама","Їжа",{"v":235,"d":"235₴"}]
[null,"2017-01-01","Мама","Медицина",{"v":74,"d":"74₴"}]
[null,"2017-01-15","Мама","Електроенергія",{"v":70,"d":"70₴"}]
[null,"2017-02-02","Мама","Стоматологічні послуги",{"v":235,"d":"235₴"}]
[null,"2017-01-01","Мама","Автострахування",{"v":74,"d":"74₴"}]
[null,"2017-01-15","Мама","Страхування життя",{"v":70,"d":"70₴"}]
[null,"2017-02-02","Мама","Страхування житла",{"v":235,"d":"235₴"}]

{"sheet":"12","index":12,"n_rows":119,"n_cols":5,"rows_kept":119}
["Працювати із широкими зведеними таблицями незручно. Тому як варіант ви можете додати друге поле рядка, яке з’явиться під першим."]
["У цьому прикладі зведену таблицю наведено в клітинках D8:E32. Перші поля рядків \"Тато\", \"Ольга\" та \"Мама\" наведено в стовпці D. Під ними в допоміжних полях наведено типи витрат із такими значеннями, як\"Спорт\", \"Авіаквитки\", \"Ресторан\" тощо."]
["КОРИСНА ІНФОРМАЦІЯ\nЯкщо додати друге поле рядка, зведена таблиця матиме вертикальну орієнтацію, а не горизонтальну. Деяким людям простіше працювати з вертикальними зведеними таблицями, тому що дані в них потрібно прокручувати менше."]
["СЛОВА EXCEL\nІноді люди називають друге поле рядка допоміжним."]
["Щоб продовжити роботу з цим посібником, натисніть клавіші Ctrl + Page Down. Щоб перейти до попереднього аркуша, натисніть клавіші Ctrl + Page Up."]
[]
[]
[{"$nulls":3},"Row Labels","Сума з Сума"]
[{"$nulls":3},"Тато",{"v":2000,"d":"2,000₴"}]
[{"$nulls":3},"Авіаквитки",{"v":500,"d":"500₴"}]
[{"$nulls":3},"Податки",{"v":500,"d":"500₴"}]
[{"$nulls":3},"Спорт",{"v":1000,"d":"1,000₴"}]
[{"$nulls":3},"Ольга",{"v":935,"d":"935₴"}]
[{"$nulls":3},"Електроніка",{"v":125,"d":"125₴"}]
[{"$nulls":3},"Квитки",{"v":125,"d":"125₴"}]
[{"$nulls":3},"Книги",{"v":250,"d":"250₴"}]
[{"$nulls":3},"Музика",{"v":20,"d":"20₴"}]
[{"$nulls":3},"Одяг",{"v":125,"d":"125₴"}]
[{"$nulls":3},"Паркування",{"v":20,"d":"20₴"}]
[{"$nulls":3},"Ресторан",{"v":20,"d":"20₴"}]
[{"$nulls":3},"Уроки музики",{"v":250,"d":"250₴"}]
[{"$nulls":3},"Мама",{"v":1427,"d":"1,427₴"}]
[{"$nulls":3},"Автострахування",{"v":74,"d":"74₴"}]
[{"$nulls":3},"Електроенергія",{"v":70,"d":"70₴"}]
[{"$nulls":3},"Їжа",{"v":470,"d":"470₴"}]
[{"$nulls":3},"Медицина",{"v":74,"d":"74₴"}]
[{"$nulls":3},"Пальне",{"v":74,"d":"74₴"}]
[{"$nulls":3},"Стоматологічні послуги",{"v":235,"d":"235₴"}]
[{"$nulls":3},"Страхування житла",{"v":235,"d":"235₴"}]
[{"$nulls":3},"Страхування життя",{"v":70,"d":"70₴"}]
[{"$nulls":3},"Членські внески",{"v":125,"d":"125₴"}]
[{"$nulls":3},"Grand Total",{"v":4362,"d":"4,362₴"}]
{"$rows_empty":65}
[null,"Дата","Покупець","Тип","Сума"]
[null,"2017-01-17","Тато","Спорт",{"v":1000,"d":"1,000₴"}]
[null,"2017-01-17","Тато","Авіаквитки",{"v":500,"d":"500₴"}]
[null,"2017-01-17","Тато","Податки",{"v":500,"d":"500₴"}]
[null,"2017-02-20","Ольга","Музика",{"v":20,"d":"20₴"}]
[null,"2017-02-25","Ольга","Квитки",{"v":125,"d":"125₴"}]
[null,"2017-01-21","Ольга","Книги",{"v":250,"d":"250₴"}]
[null,"2017-02-20","Ольга","Ресторан",{"v":20,"d":"20₴"}]
[null,"2017-02-25","Ольга","Одяг",{"v":125,"d":"125₴"}]
[null,"2017-01-21","Ольга","Уроки музики",{"v":250,"d":"250₴"}]
[null,"2017-02-20","Ольга","Паркування",{"v":20,"d":"20₴"}]
[null,"2017-02-25","Ольга","Електроніка",{"v":125,"d":"125₴"}]
[null,"2017-01-01","Мама","Пальне",{"v":74,"d":"74₴"}]
[null,"2017-01-15","Мама","Їжа",{"v":235,"d":"235₴"}]
[null,"2017-01-21","Мама","Членські внески",{"v":125,"d":"125₴"}]
[null,"2017-02-02","Мама","Їжа",{"v":235,"d":"235₴"}]
[null,"2017-01-01","Мама","Медицина",{"v":74,"d":"74₴"}]
[null,"2017-01-15","Мама","Електроенергія",{"v":70,"d":"70₴"}]
[null,"2017-02-02","Мама","Стоматологічні послуги",{"v":235,"d":"235₴"}]
[null,"2017-01-01","Мама","Автострахування",{"v":74,"d":"74₴"}]
[null,"2017-01-15","Мама","Страхування життя",{"v":70,"d":"70₴"}]
[null,"2017-02-02","Мама","Страхування житла",{"v":235,"d":"235₴"}]

{"sheet":"13","index":13,"n_rows":3,"n_cols":1,"rows_kept":3}
["На наступному аркуші ви додасте друге поле рядка. Щоб зробити це, знадобиться перетягнути поле на \"Тип\" під поле \"Покупець\" у полі рядка."]
["Зображення списку поля зведеної таблиці, у якому показано перетягування поля \"Тип\" в область рядки за допомогою курсору у вигляді стрілки."]
["Щоб продовжити роботу з цим посібником, натисніть клавіші Ctrl + Page Down. Щоб перейти до попереднього аркуша, натисніть клавіші Ctrl + Page Up."]

{"sheet":"14","index":14,"n_rows":122,"n_cols":9,"rows_kept":122}
["1. У цьому прикладі область зведеної таблиці розташовано в клітинках B13:C17. Перейдіть до будь-якої з цих клітинок. "]
["2. Натисніть клавіші Alt + ОЛ, І, щоб відкрити список поля зведеної таблиці. За замовчуванням фокус опиниться на текстовому полі пошуку: \"Введіть слова для пошуку\". Не вводьте жодних додаткових символів, натомість натисніть клавішу Tab. Примітка. Якщо список полів не відображається, натисніть клавіші Alt+ОЛ, І ще раз."]
["3. Перейдіть до поля \"Тип\" за допомогою клавіш зі стрілками. Натисніть клавішу ПРОБІЛ, щоб додати поле \"Тип\" до області рядки. "]
["4. Натисніть клавішу Esc, щоб закрити область \"Поля зведеної таблиці\". "]
["Щоб продовжити роботу з цим посібником, натисніть клавіші Ctrl + Page Down. Щоб перейти до попереднього аркуша, натисніть клавіші Ctrl + Page Up.",{"$nulls":7},{"$f":"IF(AND($B$15=\"Авіаквитки\",$C$36=125),\"Чудова робота! Ви додали\",\" \")","v":" "}]
[{"$nulls":8},{"$f":"IF(AND($B$15=\"Авіаквитки\",$C$36=125),\"до зведеної таблиці друге \",\" \")","v":" "}]
[{"$nulls":8},{"$f":"IF(AND($B$15=\"Авіаквитки\",$C$36=125),\"поле – поле рядка. Прокрутіть униз\",\" \")","v":" "}]
[{"$nulls":8},{"$f":"IF(AND($B$15=\"Авіаквитки\",$C$36=125),\"і натисніть кнопку 'Наступний'…\",\" \")","v":" "}]
[]
[]
[]
[]
[null,"Row Labels","Сума з Сума"]
[null,"Тато",{"v":2000,"d":"2,000₴"}]
[null,"Ольга",{"v":935,"d":"935₴"}]
[null,"Мама",{"v":1427,"d":"1,427₴"}]
[null,"Grand Total",{"v":4362,"d":"4,362₴"}]
{"$rows_empty":83}
[null,"Дата","Покупець","Тип","Сума"]
[null,"2017-01-17","Тато","Спорт",{"v":1000,"d":"1,000₴"}]
[null,"2017-01-17","Тато","Авіаквитки",{"v":500,"d":"500₴"}]
[null,"2017-01-17","Тато","Податки",{"v":500,"d":"500₴"}]
[null,"2017-02-20","Ольга","Музика",{"v":20,"d":"20₴"}]
[null,"2017-02-25","Ольга","Квитки",{"v":125,"d":"125₴"}]
[null,"2017-01-21","Ольга","Книги",{"v":250,"d":"250₴"}]
[null,"2017-02-20","Ольга","Ресторан",{"v":20,"d":"20₴"}]
[null,"2017-02-25","Ольга","Одяг",{"v":125,"d":"125₴"}]
[null,"2017-01-21","Ольга","Уроки музики",{"v":250,"d":"250₴"}]
[null,"2017-02-20","Ольга","Паркування",{"v":20,"d":"20₴"}]
[null,"2017-02-25","Ольга","Електроніка",{"v":125,"d":"125₴"}]
[null,"2017-01-01","Мама","Пальне",{"v":74,"d":"74₴"}]
[null,"2017-01-15","Мама","Їжа",{"v":235,"d":"235₴"}]
[null,"2017-01-21","Мама","Членські внески",{"v":125,"d":"125₴"}]
[null,"2017-02-02","Мама","Їжа",{"v":235,"d":"235₴"}]
[null,"2017-01-01","Мама","Медицина",{"v":74,"d":"74₴"}]
[null,"2017-01-15","Мама","Електроенергія",{"v":70,"d":"70₴"}]
[null,"2017-02-02","Мама","Стоматологічні послуги",{"v":235,"d":"235₴"}]
[null,"2017-01-01","Мама","Автострахування",{"v":74,"d":"74₴"}]
[null,"2017-01-15","Мама","Страхування життя",{"v":70,"d":"70₴"}]
[null,"2017-02-02","Мама","Страхування житла",{"v":235,"d":"235₴"}]

{"sheet":"15","index":15,"n_rows":121,"n_cols":7,"rows_kept":121}
["Щоб спростити зведену таблицю, ви можете згорнути дані другого поля рядка. "]
["У цьому прикладі зведену таблицю розташовано в клітинках F7:G31. Клацніть клітинку F8, щоб вибрати перше поле рядка з даними для тата. Далі натисніть клавіші Alt+ОЛ > Ш, щоб розгорнути друге поле, або Ф, щоб згорнути його. "]
["Щоб продовжити роботу з цим посібником, натисніть клавіші Ctrl + Page Down. Щоб перейти до попереднього аркуша, натисніть клавіші Ctrl + Page Up."]
[]
[]
[{"$nulls":5},{"$f":"IF(AND($F$9=\"Ольга\",$G$9=935),\"Чудово!\",\" \")","v":" "}]
[{"$nulls":5},"Row Labels","Сума з Сума"]
[{"$nulls":5},"Тато",{"v":2000,"d":"2,000₴"}]
[{"$nulls":5},"Авіаквитки",{"v":500,"d":"500₴"}]
[{"$nulls":5},"Податки",{"v":500,"d":"500₴"}]
[{"$nulls":5},"Спорт",{"v":1000,"d":"1,000₴"}]
[{"$nulls":5},"Ольга",{"v":935,"d":"935₴"}]
[{"$nulls":5},"Електроніка",{"v":125,"d":"125₴"}]
[{"$nulls":5},"Квитки",{"v":125,"d":"125₴"}]
[{"$nulls":5},"Книги",{"v":250,"d":"250₴"}]
[{"$nulls":5},"Музика",{"v":20,"d":"20₴"}]
[{"$nulls":5},"Одяг",{"v":125,"d":"125₴"}]
[{"$nulls":5},"Паркування",{"v":20,"d":"20₴"}]
[{"$nulls":5},"Ресторан",{"v":20,"d":"20₴"}]
[{"$nulls":5},"Уроки музики",{"v":250,"d":"250₴"}]
[{"$nulls":5},"Мама",{"v":1427,"d":"1,427₴"}]
[{"$nulls":5},"Автострахування",{"v":74,"d":"74₴"}]
[{"$nulls":5},"Електроенергія",{"v":70,"d":"70₴"}]
[{"$nulls":5},"Їжа",{"v":470,"d":"470₴"}]
[{"$nulls":5},"Медицина",{"v":74,"d":"74₴"}]
[{"$nulls":5},"Пальне",{"v":74,"d":"74₴"}]
[{"$nulls":5},"Стоматологічні послуги",{"v":235,"d":"235₴"}]
[{"$nulls":5},"Страхування житла",{"v":235,"d":"235₴"}]
[{"$nulls":5},"Страхування життя",{"v":70,"d":"70₴"}]
[{"$nulls":5},"Членські внески",{"v":125,"d":"125₴"}]
[{"$nulls":5},"Grand Total",{"v":4362,"d":"4,362₴"}]
{"$rows_empty":68}
[null,"Дата","Покупець","Тип","Сума"]
[null,"2017-01-17","Тато","Спорт",{"v":1000,"d":"1,000₴"}]
[null,"2017-01-17","Тато","Авіаквитки",{"v":500,"d":"500₴"}]
[null,"2017-01-17","Тато","Податки",{"v":500,"d":"500₴"}]
[null,"2017-02-20","Ольга","Музика",{"v":20,"d":"20₴"}]
[null,"2017-02-25","Ольга","Квитки",{"v":125,"d":"125₴"}]
[null,"2017-01-21","Ольга","Книги",{"v":250,"d":"250₴"}]
[null,"2017-02-20","Ольга","Ресторан",{"v":20,"d":"20₴"}]
[null,"2017-02-25","Ольга","Одяг",{"v":125,"d":"125₴"}]
[null,"2017-01-21","Ольга","Уроки музики",{"v":250,"d":"250₴"}]
[null,"2017-02-20","Ольга","Паркування",{"v":20,"d":"20₴"}]
[null,"2017-02-25","Ольга","Електроніка",{"v":125,"d":"125₴"}]
[null,"2017-01-01","Мама","Пальне",{"v":74,"d":"74₴"}]
[null,"2017-01-15","Мама","Їжа",{"v":235,"d":"235₴"}]
[null,"2017-01-21","Мама","Членські внески",{"v":125,"d":"125₴"}]
[null,"2017-02-02","Мама","Їжа",{"v":235,"d":"235₴"}]
[null,"2017-01-01","Мама","Медицина",{"v":74,"d":"74₴"}]
[null,"2017-01-15","Мама","Електроенергія",{"v":70,"d":"70₴"}]
[null,"2017-02-02","Мама","Стоматологічні послуги",{"v":235,"d":"235₴"}]
[null,"2017-01-01","Мама","Автострахування",{"v":74,"d":"74₴"}]
[null,"2017-01-15","Мама","Страхування життя",{"v":70,"d":"70₴"}]
[null,"2017-02-02","Мама","Страхування житла",{"v":235,"d":"235₴"}]

{"sheet":"16","index":16,"n_rows":121,"n_cols":7,"rows_kept":121}
["Ви також можете згорнути або розгорнути все друге поле рядка, щоб ще більше спростити зведену таблицю."]
["Пояснення"]
["Виберіть дані зведеної таблиці в клітинках F7:G31, а потім натисніть клавіші ALT+ОЛ, Ш, щоб згорнути всю групу. Щоб розгорнути її, натисніть клавіші ALT+ОЛ, Ф."]
["Щоб продовжити роботу з цим посібником, натисніть клавіші Ctrl + Page Down. Щоб перейти до попереднього аркуша, натисніть клавіші Ctrl + Page Up."]
[]
[{"$nulls":5},{"$f":"IF(AND($F$9=\"Ольга\",$G$9=935),\"Правильно!\",\" \")","v":" "}]
[{"$nulls":5},"Row Labels","Сума з Сума"]
[{"$nulls":5},"Тато",{"v":2000,"d":"2,000₴"}]
[{"$nulls":5},"Авіаквитки",{"v":500,"d":"500₴"}]
[{"$nulls":5},"Податки",{"v":500,"d":"500₴"}]
[{"$nulls":5},"Спорт",{"v":1000,"d":"1,000₴"}]
[{"$nulls":5},"Ольга",{"v":935,"d":"935₴"}]
[{"$nulls":5},"Електроніка",{"v":125,"d":"125₴"}]
[{"$nulls":5},"Квитки",{"v":125,"d":"125₴"}]
[{"$nulls":5},"Книги",{"v":250,"d":"250₴"}]
[{"$nulls":5},"Музика",{"v":20,"d":"20₴"}]
[{"$nulls":5},"Одяг",{"v":125,"d":"125₴"}]
[{"$nulls":5},"Паркування",{"v":20,"d":"20₴"}]
[{"$nulls":5},"Ресторан",{"v":20,"d":"20₴"}]
[{"$nulls":5},"Уроки музики",{"v":250,"d":"250₴"}]
[{"$nulls":5},"Мама",{"v":1427,"d":"1,427₴"}]
[{"$nulls":5},"Автострахування",{"v":74,"d":"74₴"}]
[{"$nulls":5},"Електроенергія",{"v":70,"d":"70₴"}]
[{"$nulls":5},"Їжа",{"v":470,"d":"470₴"}]
[{"$nulls":5},"Медицина",{"v":74,"d":"74₴"}]
[{"$nulls":5},"Пальне",{"v":74,"d":"74₴"}]
[{"$nulls":5},"Стоматологічні послуги",{"v":235,"d":"235₴"}]
[{"$nulls":5},"Страхування житла",{"v":235,"d":"235₴"}]
[{"$nulls":5},"Страхування життя",{"v":70,"d":"70₴"}]
[{"$nulls":5},"Членські внески",{"v":125,"d":"125₴"}]
[{"$nulls":5},"Grand Total",{"v":4362,"d":"4,362₴"}]
{"$rows_empty":68}
[null,"Дата","Покупець","Тип","Сума"]
[null,"2017-01-17","Тато","Спорт",{"v":1000,"d":"1,000₴"}]
[null,"2017-01-17","Тато","Авіаквитки",{"v":500,"d":"500₴"}]
[null,"2017-01-17","Тато","Податки",{"v":500,"d":"500₴"}]
[null,"2017-02-20","Ольга","Музика",{"v":20,"d":"20₴"}]
[null,"2017-02-25","Ольга","Квитки",{"v":125,"d":"125₴"}]
[null,"2017-01-21","Ольга","Книги",{"v":250,"d":"250₴"}]
[null,"2017-02-20","Ольга","Ресторан",{"v":20,"d":"20₴"}]
[null,"2017-02-25","Ольга","Одяг",{"v":125,"d":"125₴"}]
[null,"2017-01-21","Ольга","Уроки музики",{"v":250,"d":"250₴"}]
[null,"2017-02-20","Ольга","Паркування",{"v":20,"d":"20₴"}]
[null,"2017-02-25","Ольга","Електроніка",{"v":125,"d":"125₴"}]
[null,"2017-01-01","Мама","Пальне",{"v":74,"d":"74₴"}]
[null,"2017-01-15","Мама","Їжа",{"v":235,"d":"235₴"}]
[null,"2017-01-21","Мама","Членські внески",{"v":125,"d":"125₴"}]
[null,"2017-02-02","Мама","Їжа",{"v":235,"d":"235₴"}]
[null,"2017-01-01","Мама","Медицина",{"v":74,"d":"74₴"}]
[null,"2017-01-15","Мама","Електроенергія",{"v":70,"d":"70₴"}]
[null,"2017-02-02","Мама","Стоматологічні послуги",{"v":235,"d":"235₴"}]
[null,"2017-01-01","Мама","Автострахування",{"v":74,"d":"74₴"}]
[null,"2017-01-15","Мама","Страхування життя",{"v":70,"d":"70₴"}]
[null,"2017-02-02","Мама","Страхування житла",{"v":235,"d":"235₴"}]

{"sheet":"17","index":17,"n_rows":107,"n_cols":13,"rows_kept":107}
["Ви також можете додати кілька полів стовпців. Ці поля можна згорнути або розгорнути."]
["У цьому прикладі зведену таблицю розташовано в клітинках B13:M19. Тепер категорію \"Тип\" наведено в розділі \"Стовпці\" зі значеннями \"Їжа\" та \"Комунальні послуги\"."]
["СПРОБУЙТЕ\nВиберіть значення \"Їжа\" в клітинці C14, а потім натисніть клавіші ALT+ОЛ, Ш, щоб згорнути все поле. Щоб розгорнути його, натисніть клавіші ALT+ОЛ, Ф."]
["Щоб продовжити роботу з цим посібником, натисніть клавіші Ctrl + Page Down. Щоб перейти до попереднього аркуша, натисніть клавіші Ctrl + Page Up."]
{"$rows_empty":7}
[null,null,{"$f":"IF(AND($C$16=398,$D$15=\"Січ\"),\"Хороша робота!\",\" \")","v":" "}]
[null,"Сума з Сума","Column Labels"]
[null,null,"Їжа",{"$nulls":3},"Їжа Total","Комунальні послуги",{"$nulls":3},"Комунальні послуги Total","Grand Total"]
[null,"Row Labels","Січ","Лют","Бер","Кві",null,"Січ","Лют","Бер","Кві"]
[null,"Ольга",{"v":74,"d":"74₴"},{"v":74,"d":"74₴"},{"v":125,"d":"125₴"},{"v":125,"d":"125₴"},{"v":398,"d":"398₴"},{"$nulls":5},{"v":398,"d":"398₴"}]
[null,"Тато",{"v":235,"d":"235₴"},{"v":235,"d":"235₴"},{"v":235,"d":"235₴"},{"v":74,"d":"74₴"},{"v":779,"d":"779₴"},{"$nulls":5},{"v":779,"d":"779₴"}]
[null,"Мама",{"$nulls":5},{"v":1000,"d":"1,000₴"},{"v":1000,"d":"1,000₴"},{"v":20,"d":"20₴"},{"v":70,"d":"70₴"},{"v":2090,"d":"2,090₴"},{"v":2090,"d":"2,090₴"}]
[null,"Grand Total",{"v":309,"d":"309₴"},{"v":309,"d":"309₴"},{"v":360,"d":"360₴"},{"v":199,"d":"199₴"},{"v":1177,"d":"1,177₴"},{"v":1000,"d":"1,000₴"},{"v":1000,"d":"1,000₴"},{"v":20,"d":"20₴"},{"v":70,"d":"70₴"},{"v":2090,"d":"2,090₴"},{"v":3267,"d":"3,267₴"}]
{"$rows_empty":75}
[null,"Місяць","Покупець","Тип","Сума"]
[null,"Січ","Ольга","Їжа",{"v":74,"d":"74₴"}]
[null,"Січ","Тато","Їжа",{"v":235,"d":"235₴"}]
[null,"Січ","Мама","Комунальні послуги",{"v":1000,"d":"1,000₴"}]
[null,"Лют","Ольга","Їжа",{"v":74,"d":"74₴"}]
[null,"Лют","Тато","Їжа",{"v":235,"d":"235₴"}]
[null,"Лют","Мама","Комунальні послуги",{"v":1000,"d":"1,000₴"}]
[null,"Бер","Ольга","Їжа",{"v":125,"d":"125₴"}]
[null,"Бер","Тато","Їжа",{"v":235,"d":"235₴"}]
[null,"Бер","Мама","Комунальні послуги",{"v":20,"d":"20₴"}]
[null,"Кві","Ольга","Їжа",{"v":125,"d":"125₴"}]
[null,"Кві","Тато","Їжа",{"v":74,"d":"74₴"}]
[null,"Кві","Мама","Комунальні послуги",{"v":70,"d":"70₴"}]

{"sheet":"18","index":18,"n_rows":146,"n_cols":5,"rows_kept":146}
["Слід пам’ятати: Якщо ви хочете отримати інші відомості, додайте кілька додаткових полів рядків і стовпців. У цьому прикладі додано три поля рядків."]
["Зведену таблицю розташовано в клітинках D8:E29. У ній наведено такі поля: \"Пора року\", \"Покупець\" і \"Тип\" у стовпці D й \"Сума з Сума\" в стовпці E."]
["ЕКСПЕРТНА ПОРАДА\nДодавати інші поля не обов’язково. У цьому прикладі це варто зробити. Проте іноді забагато полів з усіма відступами дуже ускладнюють зведену таблицю, через що її важко зрозуміти. "]
["Щоб продовжити роботу з цим посібником, натисніть клавіші Ctrl + Page Down. Щоб перейти до попереднього аркуша, натисніть клавіші Ctrl + Page Up."]
[]
[]
[]
[{"$nulls":3},"Row Labels","Сума з Сума"]
[{"$nulls":3},"Осінь",{"v":5425,"d":"5,425₴"}]
[{"$nulls":3},"Мама",{"v":5425,"d":"5,425₴"}]
[{"$nulls":3},"Комунальні послуги",{"v":933,"d":"933₴"}]
[{"$nulls":3},"Оренда",{"v":3220,"d":"3,220₴"}]
[{"$nulls":3},"Страхування",{"v":1272,"d":"1,272₴"}]
[{"$nulls":3},"Весна",{"v":4760,"d":"4,760₴"}]
[{"$nulls":3},"Тато",{"v":4760,"d":"4,760₴"}]
[{"$nulls":3},"Комунальні послуги",{"v":1320,"d":"1,320₴"}]
[{"$nulls":3},"Оренда",{"v":2400,"d":"2,400₴"}]
[{"$nulls":3},"Страхування",{"v":1040,"d":"1,040₴"}]
[{"$nulls":3},"Літо",{"v":3473,"d":"3,473₴"}]
[{"$nulls":3},"Мама",{"v":3473,"d":"3,473₴"}]
[{"$nulls":3},"Комунальні послуги",{"v":1133,"d":"1,133₴"}]
[{"$nulls":3},"Оренда",{"v":1260,"d":"1,260₴"}]
[{"$nulls":3},"Страхування",{"v":1080,"d":"1,080₴"}]
[{"$nulls":3},"Зима",{"v":4100,"d":"4,100₴"}]
[{"$nulls":3},"Тато",{"v":4100,"d":"4,100₴"}]
[{"$nulls":3},"Комунальні послуги",{"v":1650,"d":"1,650₴"}]
[{"$nulls":3},"Оренда",{"v":1420,"d":"1,420₴"}]
[{"$nulls":3},"Страхування",{"v":1030,"d":"1,030₴"}]
[{"$nulls":3},"Grand Total",{"v":17758,"d":"17,758₴"}]
{"$rows_empty":68}
[null,"Покупець","Пора року","Тип","Сума"]
[null,"Тато","Зима","Страхування",{"v":300,"d":"300₴"}]
[null,"Тато","Зима","Оренда",{"v":200,"d":"200₴"}]
[null,"Тато","Зима","Комунальні послуги",{"v":400,"d":"400₴"}]
[null,"Тато","Зима","Страхування",{"v":300,"d":"300₴"}]
[null,"Тато","Зима","Оренда",{"v":800,"d":"800₴"}]
[null,"Тато","Зима","Комунальні послуги",{"v":400,"d":"400₴"}]
[null,"Тато","Зима","Страхування",{"v":200,"d":"200₴"}]
[null,"Тато","Зима","Оренда",{"v":300,"d":"300₴"}]
[null,"Тато","Зима","Комунальні послуги",{"v":450,"d":"450₴"}]
[null,"Тато","Зима","Страхування",{"v":230,"d":"230₴"}]
[null,"Тато","Зима","Оренда",{"v":120,"d":"120₴"}]
[null,"Тато","Зима","Комунальні послуги",{"v":400,"d":"400₴"}]
[null,"Тато","Весна","Страхування",{"v":210,"d":"210₴"}]
[null,"Тато","Весна","Оренда",{"v":300,"d":"300₴"}]
[null,"Тато","Весна","Комунальні послуги",{"v":400,"d":"400₴"}]
[null,"Тато","Весна","Страхування",{"v":230,"d":"230₴"}]
[null,"Тато","Весна","Оренда",{"v":900,"d":"900₴"}]
[null,"Тато","Весна","Комунальні послуги",{"v":300,"d":"300₴"}]
[null,"Тато","Весна","Страхування",{"v":200,"d":"200₴"}]
[null,"Тато","Весна","Оренда",{"v":1000,"d":"1,000₴"}]
[null,"Тато","Весна","Комунальні послуги",{"v":220,"d":"220₴"}]
[null,"Тато","Весна","Страхування",{"v":400,"d":"400₴"}]
[null,"Тато","Весна","Оренда",{"v":200,"d":"200₴"}]
[null,"Тато","Весна","Комунальні послуги",{"v":400,"d":"400₴"}]
[null,"Мама","Літо","Страхування",{"v":100,"d":"100₴"}]
[null,"Мама","Літо","Оренда",{"v":30,"d":"30₴"}]
[null,"Мама","Літо","Комунальні послуги",{"v":123,"d":"123₴"}]
[null,"Мама","Літо","Страхування",{"v":300,"d":"300₴"}]
[null,"Мама","Літо","Оренда",{"v":350,"d":"350₴"}]
[null,"Мама","Літо","Комунальні послуги",{"v":230,"d":"230₴"}]
[null,"Мама","Літо","Страхування",{"v":120,"d":"120₴"}]
[null,"Мама","Літо","Оренда",{"v":640,"d":"640₴"}]
[null,"Мама","Літо","Комунальні послуги",{"v":530,"d":"530₴"}]
[null,"Мама","Літо","Страхування",{"v":560,"d":"560₴"}]
[null,"Мама","Літо","Оренда",{"v":240,"d":"240₴"}]
[null,"Мама","Літо","Комунальні послуги",{"v":250,"d":"250₴"}]
[null,"Мама","Осінь","Страхування",{"v":62,"d":"62₴"}]
[null,"Мама","Осінь","Оренда",{"v":600,"d":"600₴"}]
[null,"Мама","Осінь","Комунальні послуги",{"v":340,"d":"340₴"}]
[null,"Мама","Осінь","Страхування",{"v":205,"d":"205₴"}]
[null,"Мама","Осінь","Оренда",{"v":500,"d":"500₴"}]
[null,"Мама","Осінь","Комунальні послуги",{"v":403,"d":"403₴"}]
[null,"Мама","Осінь","Страхування",{"v":503,"d":"503₴"}]
[null,"Мама","Осінь","Оренда",{"v":2000,"d":"2,000₴"}]
[null,"Мама","Осінь","Комунальні послуги",{"v":140,"d":"140₴"}]
[null,"Мама","Осінь","Страхування",{"v":502,"d":"502₴"}]
[null,"Мама","Осінь","Оренда",{"v":120,"d":"120₴"}]
[null,"Мама","Осінь","Комунальні послуги",{"v":50,"d":"50₴"}]

{"sheet":"19","index":19,"n_rows":55,"n_cols":5,"rows_kept":55}
["Готові ще потренуватися? Перегляньте дані в клітинках B7:E55 нижче. Завершивши, перейдіть на наступний аркуш, щоб засвоїти вивчений матеріал. "]
["Не потрібно переглядати всі рядки даних. Просто ознайомтеся з назвами полів у рядку 7. Ви працюватимете з ними на наступному аркуші. "]
["Щоб продовжити роботу з цим посібником, натисніть клавіші Ctrl + Page Down. Щоб перейти до попереднього аркуша, натисніть клавіші Ctrl + Page Up."]
[]
[]
[]
[null,"Пора року","Торговий представник","Продукт","Од. продано"]
[null,"Зима","Оксана","Апельсини",300]
[null,"Зима","Андрій","Грейпфрути",200]
[null,"Зима","Георгій","Яблука",400]
[null,"Зима","Оксана","Банани",300]
[null,"Зима","Андрій","Апельсини",800]
[null,"Зима","Георгій","Грейпфрути",400]
[null,"Зима","Оксана","Яблука",200]
[null,"Зима","Андрій","Банани",300]
[null,"Зима","Георгій","Апельсини",450]
[null,"Зима","Оксана","Грейпфрути",230]
[null,"Зима","Андрій","Яблука",120]
[null,"Зима","Георгій","Банани",400]
[null,"Весна","Оксана","Буряки",210]
[null,"Весна","Андрій","Картопля",300]
[null,"Весна","Георгій","Салат",400]
[null,"Весна","Оксана","Редис",230]
[null,"Весна","Андрій","Буряки",900]
[null,"Весна","Георгій","Картопля",300]
[null,"Весна","Оксана","Салат",200]
[null,"Весна","Андрій","Редис",{"v":1000,"d":"1,000"}]
[null,"Весна","Георгій","Буряки",220]
[null,"Весна","Оксана","Картопля",400]
[null,"Весна","Андрій","Салат",200]
[null,"Весна","Георгій","Редис",400]
[null,"Літо","Оксана","Чорниця",100]
[null,"Літо","Андрій","Полуниця",30]
[null,"Літо","Георгій","Виноград",123]
[null,"Літо","Оксана","Гарбуз",300]
[null,"Літо","Андрій","Чорниця",350]
[null,"Літо","Георгій","Полуниця",230]
[null,"Літо","Оксана","Виноград",120]
[null,"Літо","Андрій","Гарбуз",640]
[null,"Літо","Георгій","Чорниця",530]
[null,"Літо","Оксана","Полуниця",560]
[null,"Літо","Андрій","Виноград",240]
[null,"Літо","Георгій","Гарбуз",250]
[null,"Осінь","Оксана","Диня",62]
[null,"Осінь","Андрій","Кабачок",600]
[null,"Осінь","Георгій","Яблука",340]
[null,"Осінь","Оксана","Апельсини",205]
[null,"Осінь","Андрій","Диня",500]
[null,"Осінь","Георгій","Кабачок",403]
[null,"Осінь","Оксана","Яблука",503]
[null,"Осінь","Андрій","Апельсини",{"v":2000,"d":"2,000"}]
[null,"Осінь","Георгій","Диня",140]
[null,"Осінь","Оксана","Кабачок",502]
[null,"Осінь","Андрій","Яблука",120]
[null,"Осінь","Георгій","Апельсини",50]

{"sheet":"20","index":20,"n_rows":17,"n_cols":11,"rows_kept":17}
["1. У цьому прикладі область зведеної таблиці розташовано в клітинках B12:C17. Перейдіть до будь-якої з цих клітинок. \n\n"]
["2. Натисніть клавіші Alt + ОЛ, І, щоб відкрити список полів зведеної таблиці. За замовчуванням фокус опиниться на текстовому полі пошук: \"Введіть слова для пошуку\". Не вводьте жодних додаткових символів, натомість натисніть клавішу Tab. Примітка. Якщо список полів не відображається, натисніть клавіші Alt+ОЛ, І ще раз."]
["3. Перейдіть до поля \"Торговий представник\" за допомогою клавіш зі стрілками. Натисніть клавішу ПРОБІЛ, щоб додати поле \"Торговий представник\" до області рядків. Щоб відобразити відомості про торгових представників в області стовпців, перейдіть до поля \"Торговий представник\" в області рядків за допомогою клавіші Tab, а потім натисніть клавішу ПРОБІЛ і виберіть \"Перемістити до підписів стовпців\". Натисніть клавішу Esc, щоб закрити область \"Поля зведеної таблиці\". "]
["4. Визначте представника, який продав найбільшу кількість продуктів восени, а потім виберіть його в клітинці K8. "]
["Щоб продовжити роботу з цим посібником, натисніть клавіші Ctrl + Page Down. Щоб перейти до попереднього аркуша, натисніть клавіші Ctrl + Page Up."]
[]
[{"$nulls":10},"Виберіть одне ім’я:"]
[]
[{"$nulls":10},{"$f":"IF($K$8=\"Андрій\",\"Ви маєте рацію!\",IF($K$8=\"Георгій\",\"Спробуйте ще раз...\",IF($K$8=\"Оксана\",\"Не зовсім так...\",IF($K$8=\" \",\" \",\" \"))))","v":" "}]
[]
[]
[null,"Row Labels","Сума з Од. продано"]
[null,"Осінь",{"v":5425,"d":"5,425"}]
[null,"Весна",{"v":4760,"d":"4,760"}]
[null,"Літо",{"v":3473,"d":"3,473"}]
[null,"Зима",{"v":4100,"d":"4,100"}]
[null,"Grand Total",{"v":17758,"d":"17,758"}]

{"sheet":"21","index":21,"n_rows":14,"n_cols":10,"rows_kept":14}
["1. Клацніть клітинку B13, щоб активувати зведену таблицю \"Сума з Од. продано\".\n\n"]
["2. Натисніть клавіші Alt + ОЛ, І, щоб відкрити список поля зведеної таблиці. За замовчуванням фокус опиниться на текстовому полі пошук: \"Введіть слова для пошуку\". Не вводьте жодних додаткових символів, натомість натисніть клавішу Tab. Примітка. Якщо список полів не відображається, натисніть клавіші Alt+ОЛ, І ще раз."]
["3. За допомогою клавіш зі стрілками й клавіші ПРОБІЛ розгорніть приклад у вертикальній зведеній таблиці з порами року ліворуч і торговими представниками під ними. Натисніть клавішу Esc, щоб закрити область \"Поля зведеної таблиці\". "]
["Щоб продовжити роботу з цим посібником, натисніть клавіші Ctrl + Page Down. Щоб перейти до попереднього аркуша, натисніть клавіші Ctrl + Page Up."]
[{"$nulls":9},{"$f":"IF(AND(B$14=\"Весна\",$C$17=1040),\"Чудова робота! Ви додали допоміжне\",\" \")","v":" "}]
[{"$nulls":9},{"$f":"IF(AND(B$14=\"Весна\",$C$17=1040),\"поле рядка. Тепер прокрутіть\",\" \")","v":" "}]
[{"$nulls":9},{"$f":"IF(AND(B$14=\"Весна\",$C$17=1040),\"униз і натисніть кнопку 'Наступний'.\",\" \")","v":" "}]
[]
[]
[]
[]
[]
[null,"Сума з Од. продано"]
[null,{"v":17758,"d":"17,758"}]

{"sheet":"22","index":22,"n_rows":14,"n_cols":10,"rows_kept":14}
["1. Клацніть клітинку B13, щоб активувати зведену таблицю \"Сума з Од. продано\"."]
["2. Натисніть клавіші Alt + ОЛ, І, щоб відкрити список поля зведеної таблиці. За замовчуванням фокус опиниться на текстовому полі пошук: \"Введіть слова для пошуку\". Не вводьте жодних додаткових символів, натомість натисніть клавішу Tab. Примітка. Якщо список полів не відображається, натисніть клавіші Alt+ОЛ, І ще раз."]
["3. За допомогою клавіш зі стрілками й клавіші ПРОБІЛ змініть приклад, щоб кожен продукт відображався у власному рядку, а кожна пора року – у власному стовпці."]
["Щоб продовжити роботу з цим посібником, натисніть клавіші Ctrl + Page Down. Щоб перейти до попереднього аркуша, натисніть клавіші Ctrl + Page Up.",{"$nulls":8},{"$f":"IF(AND($B$15=\"Апельсини\",$G$28=1683),\"Чудова робота! Ви додали поле\",\" \")","v":" "}]
[{"$nulls":9},{"$f":"IF(AND($B$15=\"Апельсини\",$G$28=1683),\"рядка ліворуч і поле стовпця з\",\" \")","v":" "}]
[{"$nulls":9},{"$f":"IF(AND($B$15=\"Апельсини\",$G$28=1683),\"чотирма новими стовпцями. \",\" \")","v":" "}]
[{"$nulls":9},{"$f":"IF(AND($B$15=\"Апельсини\",$G$28=1683),\"Прокрутіть униз і натисніть \",\" \")","v":" "}]
[{"$nulls":9},{"$f":"IF(AND($B$15=\"Яблука\",$G$28=1505),\"кнопку 'Наступний'…\",\" \")","v":" "}]
[]
[]
[]
[]
[null,"Сума з Од. продано"]
[null,{"v":17758,"d":"17,758"}]

{"sheet":"23","index":23,"n_rows":16,"n_cols":18,"rows_kept":16}
["1. Клацніть клітинку B13, щоб активувати зведену таблицю \"Сума з Од. продано\".\n\n"]
["2. Натисніть клавіші Alt + ОЛ, І, щоб відкрити список поля зведеної таблиці. За замовчуванням фокус опиниться на текстовому полі пошуку: \"Введіть слова для пошуку\". Не вводьте жодних додаткових символів, натомість натисніть клавішу Tab. Примітка. Якщо список полів не відображається, натисніть клавіші Alt+ОЛ, І ще раз."]
["3. За допомогою клавіш зі стрілками, клавіш ПРОБІЛ і Tab змініть приклад, щоб торгові представники відображалися ліворуч, а під ними вказувалася пора року."]
["Щоб продовжити роботу з цим посібником, натисніть клавіші Ctrl + Page Down. Щоб перейти до попереднього аркуша, натисніть клавіші Ctrl + Page Up."]
[{"$nulls":9},{"$f":"IF(AND($B$14=\"Георгій\",$C$14=5036),\"GЧудова робота! Тепер дані стане\",\" \")","v":" "}]
[{"$nulls":9},{"$f":"IF(AND($B$14=\"Георгій\",$C$14=5036),\"легше читати. Прокрутіть униз і\",\" \")","v":" "}]
[{"$nulls":9},{"$f":"IF(AND($B$14=\"Георгій\",$C$14=5036),\"натисніть кнопку 'Наступний'…\",\" \")","v":" "}]
[]
[]
[]
[]
[]
[null,null,"Column Labels"]
[null,null,"Георгій",{"$nulls":3},"Георгій Total","Андрій",{"$nulls":3},"Андрій Total","Оксана",{"$nulls":3},"Оксана Total","Grand Total"]
[null,null,"Осінь","Весна","Літо","Зима",null,"Осінь","Весна","Літо","Зима",null,"Осінь","Весна","Літо","Зима"]
[null,"Сума з Од. продано",933,{"v":1320,"d":"1,320"},{"v":1133,"d":"1,133"},{"v":1650,"d":"1,650"},{"v":5036,"d":"5,036"},{"v":3220,"d":"3,220"},{"v":2400,"d":"2,400"},{"v":1260,"d":"1,260"},{"v":1420,"d":"1,420"},{"v":8300,"d":"8,300"},{"v":1272,"d":"1,272"},{"v":1040,"d":"1,040"},{"v":1080,"d":"1,080"},{"v":1030,"d":"1,030"},{"v":4422,"d":"4,422"},{"v":17758,"d":"17,758"}]

{"sheet":"24","index":24,"n_rows":14,"n_cols":9,"rows_kept":14}
["1. Клацніть клітинку B13, щоб активувати зведену таблицю \"Сума з Од. продано\"."]
["2. Натисніть клавіші Alt + ОЛ, І, щоб відкрити список поля зведеної таблиці. За замовчуванням фокус опиниться на текстовому полі пошук: \"Введіть слова для пошуку\". Не вводьте жодних додаткових символів, натомість натисніть клавішу Tab. Примітка. Якщо список полів не відображається, натисніть клавіші Alt+ОЛ, І ще раз."]
["3. За допомогою клавіш зі стрілками, клавіш ПРОБІЛ і Tab змініть приклад, щоб торгові представники відображалися у власних полях стовпців, ліворуч указувалася пора року, а під ними – відповідні продукти."]
["4. Клацніть клітинку I9 і виберіть кількість грейпфрутів, проданих Георгієм зимою."]
["Щоб продовжити роботу з цим посібником, натисніть клавіші Ctrl + Page Down. Щоб перейти до попереднього аркуша, натисніть клавіші Ctrl + Page Up."]
[]
[]
[{"$nulls":8},"Виберіть одне ім’я:"]
[]
[{"$nulls":8},{"$f":"IF($I$9=400,\"Ви маєте рацію!\",IF($I$9=530,\"Спробуйте ще раз...\",IF($I$9=123,\"Не зовсім так...\",\" \")))","v":" "}]
[]
[]
[null,"Сума з Од. продано"]
[null,{"v":17758,"d":"17,758"}]

{"sheet":"Докладні відомості","index":25,"n_rows":8,"n_cols":1,"rows_kept":8}
["Чудова робота. Переконалися в користі зведених таблиць?"]
["Не зупиняйтеся! Ви ще не все дізналися..."]
["Докладні відомості про зведення\nПерегляньте корисну статтю про зведені таблиці, щоб дізнатися більше про свої можливості."]
["Оновлення\nПерегляньте цю важливу статтю про те, як оновлювати зведені таблиці. "]
["Спільнота\nСпілкуйтеся з іншими прихильниками Excel. Ви можете допомогти один одному."]
[]
[]
[" "]